[Event "CZE-ch Youth G10-G12-G14 2022"]
[Site "Luhacovice"]
[Date "2022.03.13"]
[Round "2.42"]
[White "Zilava Lucie"]
[Black "Archlebova, Stela"]
[Result "0-1"]
[ECO "C45"]
[WhiteElo "1059"]
[BlackElo "1121"]
[Annotator "NA"]
[PlyCount "121"]
[EventDate "2022.03.12"]
[EventType "swiss"]
[EventCountry "CZE"]
[SourceTitle "playchess.com"]
[Source "ChessBase"]
[SourceQuality "1"]
[TimeControl "40/5400+30:1800+30"]

1. e4 {[%emt 0:00:04]} e5 {[%emt 0:00:02]} 2. Nf3 {[%emt 0:00:05]} Nc6 {[%emt 0:00:10]} 3. d4 {[%emt 0:00:05]} exd4 {[%emt 0:00:12]} 4. Nxd4 {[%emt 0:00:04]} Bc5 {[%emt 0:00:10]} 5. Be3 {[%emt 0:00:07]} Qf6 {[%emt 0:01:15]} 6. c3 {[%emt 0:00:24]} Bb6 {[%emt 0:02:48]} 7. Bb5 {[%emt 0:03:12]} Nge7 {[%emt 0:01:09]} 8. Na3 {[%emt 0:04:39]} O-O {[%emt 0:01:57]} 9. Qd2 {[%emt 0:02:28]} Re8 {[%emt 0:01:54]} 10. O-O-O {[%emt 0:01:24]} a6 {[%emt 0:01:05]} 11. Ba4 {[%emt 0:00:51]} Bxd4 {[%emt 0:03:27]} 12. Bxd4 {[%emt 0:02:16]} Qg6 {[%emt 0:01:49]} 13. Bc2 {[%emt 0:02:16]} Qe6 {[%emt 0:01:33]} 14. Kb1 {[%emt 0:01:19]} Nxd4 {[%emt 0:01:09]} 15. Qxd4 {[%emt 0:01:44]} Nc6 {[%emt 0:00:17]} 16. Qe3 {[%emt 0:00:27]} b5 {[%emt 0:01:12]} 17. Qf3 {[%emt 0:01:57]} Rb8 {[%emt 0:03:27]} 18. Bb3 {[%emt 0:00:46]} Qxe4+ {[%emt 0:00:13]} 19. Qxe4 {[%emt 0:00:31]} Rxe4 {[%emt 0:00:12]} 20. Rhe1 {[%emt 0:00:02]} Rxe1 {[%emt 0:00:44]} 21. Rxe1 {[%emt 0:00:10]} Bb7 {[%emt 0:00:19]} 22. Nc2 {[%emt 0:00:54]} Na5 {[%emt 0:01:20]} 23. g3 {[%emt 0:00:59]} Nxb3 {[%emt 0:00:33]} 24. axb3 {[%emt 0:00:06]} Bd5 {[%emt 0:00:24]} 25. b4 {[%emt 0:00:47]} Be6 {[%emt 0:01:43]} 26. Nd4 {[%emt 0:00:53]} Re8 {[%emt 0:00:28]} 27. Kc1 {[%emt 0:00:26]} h6 {[%emt 0:01:06]} 28. f4 {[%emt 0:00:26]} Kf8 {[%emt 0:00:46]} 29. f5 {[%emt 0:02:23]} Bd5 {[%emt 0:00:30]} 30. Rxe8+ {[%emt 0:00:48]} Kxe8 {[%emt 0:00:13]} 31. h4 {[%emt 0:00:43]} Ke7 {[%emt 0:00:21]} 32. Kd2 {[%emt 0:01:06]} Kf6 {[%emt 0:00:23]} 33. Ke3 {[%emt 0:00:37]} d6 {[%emt 0:00:39]} 34. Kf4 {[%emt 0:01:43]} c5 {[%emt 0:00:36]} 35. Nc2 {[%emt 0:01:59]} g5+ {[%emt 0:00:53]} 36. hxg5+ {[%emt 0:02:33]} hxg5+ {[%emt 0:00:59]} 37. Kg4 {[%emt 0:00:43]} Be4 {[%emt 0:01:21]} 38. Ne3 {[%emt 0:00:44]} cxb4 {[%emt 0:01:23]} 39. cxb4 {[%emt 0:00:29]} d5 {[%emt 0:00:09]} 40. Kh5 {[%emt 0:00:54]} Bf3+ {[%emt 0:01:36]} 41. g4 {[%emt 0:30:33]} d4 {[%emt 0:30:49]} 42. Nf1 {[%emt 0:00:56]} Ke5 {[%emt 0:03:15]} 43. Kxg5 {[%emt 0:00:23]} f6+ {[%emt 0:00:11]} 44. Kg6 {[%emt 0:00:28]} Bxg4 {[%emt 0:00:42]} 45. Nd2 {[%emt 0:00:49]} Bxf5+ {[%emt 0:00:41]} 46. Kh5 {[%emt 0:00:28]} Be6 {[%emt 0:00:41]} 47. Kh4 {[%emt 0:00:15]} d3 {[%emt 0:00:31]} 48. Kg3 {[%emt 0:00:29]} Kd4 {[%emt 0:00:22]} 49. Kf2 {[%emt 0:00:22]} Bd5 {[%emt 0:00:51]} 50. Nf1 {[%emt 0:01:01]} f5 {[%emt 0:00:28]} 51. Nd2 {[%emt 0:00:26]} Be4 {[%emt 0:01:23]} 52. Nf1 {[%emt 0:00:21]} Kc4 {[%emt 0:00:19]} 53. Nd2+ {[%emt 0:00:33]} Kxb4 {[%emt 0:00:35]} 54. Ke3 {[%emt 0:00:42]} Kc5 {[%emt 0:01:09]} 55. Nb3+ {[%emt 0:00:43]} Kc4 {[%emt 0:00:23]} 56. Nd2+ {[%emt 0:00:06]} Kd5 {[%emt 0:00:19]} 57. Nxe4 {[%emt 0:00:37]} fxe4 {[%emt 0:00:44]} 58. b3 {[%emt 0:00:13]} b4 {[%emt 0:00:32]} 59. Kd2 {[%emt 0:00:08]} Kd4 {[%emt 0:00:29]} 60. Kd1 {[%emt 0:01:04]} Kc3 {[%emt 0:00:14]} 61. Kc1 {[%emt 0:00:20]} 0-1

[Event "CZE-ch Youth G10-G12-G14 2022"]
[Site "Luhacovice"]
[Date "2022.03.14"]
[Round "3.1"]
[White "Vancakova, Veronika"]
[Black "Hujova Tess"]
[Result "1-0"]
[ECO "D20"]
[WhiteElo "1300"]
[BlackElo "1000"]
[Annotator "NA"]
[PlyCount "52"]
[EventDate "2022.03.12"]
[EventType "swiss"]
[EventCountry "CZE"]
[SourceTitle "playchess.com"]
[Source "ChessBase"]
[SourceQuality "1"]
[TimeControl "40/5400+30:1800+30"]

1. d4 {[%emt 0:00:03]} d5 {[%emt 0:00:16]} 2. c4 {[%emt 0:00:04]} dxc4 {[%emt 0:00:37]} 3. e3 {[%emt 0:00:07]} Nf6 {[%emt 0:00:44]} 4. Bxc4 {[%emt 0:00:07]} g6 {[%emt 0:00:44]} 5. Qb3 {[%emt 0:01:10]} e6 {[%emt 0:01:10]} 6. Nc3 {[%emt 0:00:49]} Bg7 {[%emt 0:01:12]} 7. Nf3 {[%emt 0:00:29]} O-O {[%emt 0:00:55]} 8. O-O {[%emt 0:00:15]} b6 {[%emt 0:01:07]} 9. e4 {[%emt 0:09:52]} Bb7 {[%emt 0:03:29]} 10. Re1 {[%emt 0:00:26]} Qd7 {[%emt 0:04:50]} 11. Bg5 {[%emt 0:08:01]} h6 {[%emt 0:01:28]} 12. Bh4 {[%emt 0:01:47]} Nh7 {[%emt 0:02:03]} 13. Rad1 {[%emt 0:03:01]} a6 {[%emt 0:01:11]} 14. a4 {[%emt 0:01:01]} g5 {[%emt 0:00:57]} 15. Bg3 {[%emt 0:00:07]} Nf6 {[%emt 0:04:52]} 16. Ne5 {[%emt 0:02:45]} Qe7 {[%emt 0:02:11]} 17. d5 {[%emt 0:02:05]} exd5 {[%emt 0:01:41]} 18. exd5 {[%emt 0:00:42]} Qd8 {[%emt 0:01:13]} 19. d6 {[%emt 0:03:14]} cxd6 {[%emt 0:00:49]} 20. Nxf7 {[%emt 0:13:04]} Rxf7 {[%emt 0:02:31]} 21. Bxf7+ {[%emt 0:01:03]} Kh8 {[%emt 0:04:10]} 22. Bxd6 {[%emt 0:00:30]} Qc8 {[%emt 0:00:30]} 23. f3 {[%emt 0:00:30]} g4 {[%emt 0:00:30]} 24. fxg4 {[%emt 0:00:30]} Nxg4 {[%emt 0:00:30]} 25. Re8+ {[%emt 0:00:30]} Bf8 {[%emt 0:00:30]} 26. Rxf8+ {[%emt 0:00:30]} Kg7 {[%emt 0:00:30]} 1-0

[Event "CZE-ch Youth G10-G12-G14 2022"]
[Site "Luhacovice"]
[Date "2022.03.14"]
[Round "3.2"]
[White "Janouskova, Eliska"]
[Black "Lackova, Lucie"]
[Result "1-0"]
[ECO "C49"]
[WhiteElo "1167"]
[BlackElo "1142"]
[Annotator "NA"]
[PlyCount "79"]
[EventDate "2022.03.12"]
[EventType "swiss"]
[EventCountry "CZE"]
[SourceTitle "playchess.com"]
[Source "ChessBase"]
[SourceQuality "1"]
[TimeControl "40/5400+30:1800+30"]

1. e4 {[%emt 0:19:13]} e5 {[%emt 0:12:10]} 2. Nf3 {[%emt 0:00:30]} Nc6 {[%emt 0:00:30]} 3. Nc3 {[%emt 0:00:30]} Nf6 {[%emt 0:00:30]} 4. Bb5 {[%emt 0:00:30]} Bb4 {[%emt 0:00:30]} 5. O-O {[%emt 0:00:30]} d6 {[%emt 0:00:30]} 6. Nd5 {[%emt 0:00:30]} Bc5 {[%emt 0:00:30]} 7. d4 {[%emt 0:00:30]} Bb6 {[%emt 0:00:30]} 8. Nxf6+ {[%emt 0:00:30]} Qxf6 {[%emt 0:00:30]} 9. d5 {[%emt 0:00:30]} a6 {[%emt 0:00:30]} 10. Ba4 {[%emt 0:00:30]} Qg6 {[%emt 0:00:30]} 11. dxc6 {[%emt 0:00:30]} O-O {[%emt 0:00:30]} 12. Qd3 {[%emt 0:00:30]} bxc6 {[%emt 0:07:52]} 13. Bxc6 {[%emt 0:00:43]} Rb8 {[%emt 0:00:27]} 14. Bd2 {[%emt 0:03:22]} Bc5 {[%emt 0:03:48]} 15. b3 {[%emt 0:02:06]} Rb6 {[%emt 0:10:22]} 16. Bd5 {[%emt 0:02:58]} c6 {[%emt 0:02:51]} 17. Bc4 {[%emt 0:00:46]} Bd4 {[%emt 0:07:38]} 18. c3 {[%emt 0:00:43]} d5 {[%emt 0:04:22]} 19. exd5 {[%emt 0:02:49]} Bf5 {[%emt 0:03:04]} 20. Qe2 {[%emt 0:02:09]} cxd5 {[%emt 0:02:42]} 21. Bxd5 {[%emt 0:01:49]} Bd3 {[%emt 0:02:34]} 22. Qe1 {[%emt 0:04:27]} Bxf1 {[%emt 0:01:31]} 23. Qxf1 {[%emt 0:00:17]} Qd6 {[%emt 0:08:56]} 24. Be4 {[%emt 0:01:51]} f5 {[%emt 0:05:19]} 25. Bc2 {[%emt 0:01:40]} Bxc3 {[%emt 0:01:18]} 26. Bxc3 {[%emt 0:00:24]} Rc8 {[%emt 0:01:18]} 27. Bxe5 {[%emt 0:00:30]} Qg6 {[%emt 0:05:21]} 28. Qd3 {[%emt 0:02:57]} Rbc6 {[%emt 0:02:18]} 29. Bd1 {[%emt 0:02:39]} Rc5 {[%emt 0:05:21]} 30. h3 {[%emt 0:01:01]} Rf8 {[%emt 0:02:05]} 31. Qd6 {[%emt 0:06:10]} Rc6 {[%emt 0:05:04]} 32. Qd5+ {[%emt 0:01:50]} Kh8 {[%emt 0:01:09]} 33. Be2 {[%emt 0:02:36]} Rcc8 {[%emt 0:00:41]} 34. Rd1 {[%emt 0:03:31]} Qb6 {[%emt 0:01:53]} 35. Qd7 {[%emt 0:02:36]} Rg8 {[%emt 0:01:45]} 36. Ng5 {[%emt 0:01:15]} h6 {[%emt 0:00:21]} 37. Nf7+ {[%emt 0:02:19]} Kh7 {[%emt 0:00:15]} 38. Bd3 {[%emt 0:02:33]} Rcf8 {[%emt 0:01:11]} 39. Bxf5+ {[%emt 0:00:36]} g6 {[%emt 0:00:18]} 40. Ng5# {[%emt 0:00:14]} 1-0

[Event "CZE-ch Youth G10-G12-G14 2022"]
[Site "Luhacovice"]
[Date "2022.03.14"]
[Round "3.3"]
[White "Romanko Diana"]
[Black "Jenikova Sabina"]
[Result "1-0"]
[ECO "C50"]
[WhiteElo "1000"]
[BlackElo "1076"]
[Annotator "NA"]
[PlyCount "77"]
[EventDate "2022.03.12"]
[EventType "swiss"]
[EventCountry "CZE"]
[SourceTitle "playchess.com"]
[Source "ChessBase"]
[SourceQuality "1"]
[TimeControl "40/5400+30:1800+30"]

1. e4 {[%emt 0:00:07]} e5 {[%emt 0:00:11]} 2. Nf3 {[%emt 0:00:09]} Nc6 {[%emt 0:00:38]} 3. Bc4 {[%emt 0:00:16]} d6 {[%emt 0:00:24]} 4. c3 {[%emt 0:00:51]} Bg4 {[%emt 0:00:20]} 5. d4 {[%emt 0:00:30]} Bxf3 {[%emt 0:00:30]} 6. Qxf3 {[%emt 0:00:15]} Nf6 {[%emt 0:00:33]} 7. Be3 {[%emt 0:03:10]} Be7 {[%emt 0:00:28]} 8. Nd2 {[%emt 0:02:11]} O-O {[%emt 0:00:13]} 9. O-O-O {[%emt 0:00:11]} g6 {[%emt 0:01:29]} 10. h4 {[%emt 0:02:20]} Nh5 {[%emt 0:01:06]} 11. g4 {[%emt 0:02:48]} Ng7 {[%emt 0:01:27]} 12. h5 {[%emt 0:01:30]} Bg5 {[%emt 0:00:36]} 13. hxg6 {[%emt 0:01:00]} hxg6 {[%emt 0:00:42]} 14. Qh3 {[%emt 0:00:37]} Bh4 {[%emt 0:02:29]} 15. Qxh4 {[%emt 0:00:49]} Qxh4 {[%emt 0:00:39]} 16. Rxh4 {[%emt 0:00:09]} Rfe8 {[%emt 0:01:16]} 17. f4 {[%emt 0:01:49]} Ne6 {[%emt 0:01:27]} 18. d5 {[%emt 0:01:44]} exf4 {[%emt 0:00:40]} 19. dxe6 {[%emt 0:00:43]} fxe6 {[%emt 0:00:36]} 20. Bxf4 {[%emt 0:01:06]} Kg7 {[%emt 0:00:45]} 21. Bh6+ {[%emt 0:00:55]} Kf6 {[%emt 0:00:40]} 22. Rf1+ {[%emt 0:04:39]} Ke7 {[%emt 0:00:44]} 23. Bg5+ {[%emt 0:00:25]} Kd7 {[%emt 0:00:19]} 24. Rf7+ {[%emt 0:01:34]} Ne7 {[%emt 0:00:31]} 25. Rhh7 {[%emt 0:00:35]} d5 {[%emt 0:00:27]} 26. Rxe7+ {[%emt 0:00:49]} Rxe7 {[%emt 0:00:25]} 27. Rxe7+ {[%emt 0:00:16]} Kd6 {[%emt 0:00:20]} 28. exd5 {[%emt 0:01:18]} exd5 {[%emt 0:00:10]} 29. Bd3 {[%emt 0:00:43]} Rh8 {[%emt 0:00:44]} 30. Rg7 {[%emt 0:01:43]} Rh1+ {[%emt 0:00:19]} 31. Kc2 {[%emt 0:01:05]} c6 {[%emt 0:00:25]} 32. Rxg6+ {[%emt 0:00:12]} Kc7 {[%emt 0:00:14]} 33. Bf4+ {[%emt 0:00:34]} Kb6 {[%emt 0:00:53]} 34. b4 {[%emt 0:01:24]} a5 {[%emt 0:00:22]} 35. bxa5+ {[%emt 0:00:33]} Kxa5 {[%emt 0:00:16]} 36. Bc7+ {[%emt 0:00:15]} Ka4 {[%emt 0:00:18]} 37. Rf6 {[%emt 0:01:58]} Ka3 {[%emt 0:01:10]} 38. Rf4 {[%emt 0:00:58]} Kxa2 {[%emt 0:00:16]} 39. Ra4# {[%emt 0:00:08]} 1-0

[Event "CZE-ch Youth G10-G12-G14 2022"]
[Site "Luhacovice"]
[Date "2022.03.14"]
[Round "3.5"]
[White "Kusova, Nikola"]
[Black "Melicharova Veronika"]
[Result "1-0"]
[ECO "B15"]
[WhiteElo "1227"]
[BlackElo "1000"]
[Annotator "NA"]
[PlyCount "63"]
[EventDate "2022.03.12"]
[EventType "swiss"]
[EventCountry "CZE"]
[SourceTitle "playchess.com"]
[Source "ChessBase"]
[SourceQuality "1"]
[TimeControl "40/5400+30:1800+30"]

1. e4 {[%emt 0:00:03]} c6 {[%emt 0:00:15]} 2. d4 {[%emt 0:00:35]} d5 {[%emt 0:00:13]} 3. Nc3 {[%emt 0:00:47]} dxe4 {[%emt 0:01:27]} 4. Nxe4 {[%emt 0:00:48]} Nf6 {[%emt 0:00:49]} 5. Ng3 {[%emt 0:01:22]} c5 {[%emt 0:01:01]} 6. Nf3 {[%emt 0:01:33]} cxd4 {[%emt 0:02:04]} 7. Nxd4 {[%emt 0:01:54]} e5 {[%emt 0:01:34]} 8. Bb5+ {[%emt 0:01:08]} Nbd7 {[%emt 0:02:58]} 9. Qe2 {[%emt 0:02:10]} Bc5 {[%emt 0:01:07]} 10. Qxe5+ {[%emt 0:00:58]} Be7 {[%emt 0:02:52]} 11. Ngf5 {[%emt 0:02:37]} O-O {[%emt 0:03:00]} 12. Nxe7+ {[%emt 0:00:34]} Kh8 {[%emt 0:01:50]} 13. Bxd7 {[%emt 0:01:20]} Bxd7 {[%emt 0:01:51]} 14. Bg5 {[%emt 0:04:10]} Re8 {[%emt 0:04:03]} 15. Bxf6 {[%emt 0:00:24]} Rxe7 {[%emt 0:04:25]} 16. Bxe7 {[%emt 0:01:32]} f6 {[%emt 0:00:31]} 17. Ne6 {[%emt 0:03:10]} Qxe7 {[%emt 0:01:57]} 18. Qe2 {[%emt 0:00:45]} Bxe6 {[%emt 0:01:02]} 19. O-O-O {[%emt 0:00:48]} Re8 {[%emt 0:01:40]} 20. Rhe1 {[%emt 0:01:49]} h6 {[%emt 0:01:55]} 21. f4 {[%emt 0:03:15]} Bg4 {[%emt 0:01:19]} 22. Qxe7 {[%emt 0:00:51]} Rxe7 {[%emt 0:00:00]} 23. Rxe7 {[%emt 0:00:20]} Bxd1 {[%emt 0:00:25]} 24. Kxd1 {[%emt 0:00:22]} g5 {[%emt 0:00:23]} 25. fxg5 {[%emt 0:00:44]} fxg5 {[%emt 0:00:30]} 26. Ke2 {[%emt 0:00:32]} b5 {[%emt 0:00:37]} 27. Ke3 {[%emt 0:00:15]} a5 {[%emt 0:00:24]} 28. Ke4 {[%emt 0:00:06]} Kg8 {[%emt 0:00:50]} 29. Kf5 {[%emt 0:00:13]} Kf8 {[%emt 0:00:46]} 30. Kf6 {[%emt 0:00:13]} h5 {[%emt 0:00:17]} 31. Ra7 {[%emt 0:00:17]} g4 {[%emt 0:00:31]} 32. Ra8# {[%emt 0:00:11]} 1-0

[Event "CZE-ch Youth G10-G12-G14 2022"]
[Site "Luhacovice"]
[Date "2022.03.14"]
[Round "3.9"]
[White "Stepankova Linda"]
[Black "Kubalova Nikol"]
[Result "1-0"]
[ECO "C68"]
[WhiteElo "1000"]
[BlackElo "1000"]
[Annotator "NA"]
[PlyCount "58"]
[EventDate "2022.03.12"]
[EventType "swiss"]
[EventCountry "CZE"]
[SourceTitle "playchess.com"]
[Source "ChessBase"]
[SourceQuality "1"]
[TimeControl "40/5400+30:1800+30"]

1. e4 {[%emt 0:00:03]} e5 {[%emt 0:00:02]} 2. Nf3 {[%emt 0:00:01]} Nc6 {[%emt 0:00:39]} 3. Bb5 {[%emt 0:00:01]} a6 {[%emt 0:00:51]} 4. Bxc6 {[%emt 0:00:08]} bxc6 {[%emt 0:00:23]} 5. Nxe5 {[%emt 0:00:07]} Bc5 {[%emt 0:00:41]} 6. Nc3 {[%emt 0:00:38]} Nf6 {[%emt 0:00:47]} 7. d3 {[%emt 0:00:32]} d6 {[%emt 0:00:24]} 8. Nxc6 {[%emt 0:01:37]} Bg4 {[%emt 0:00:42]} 9. f3 {[%emt 0:00:41]} Qd7 {[%emt 0:00:50]} 10. fxg4 {[%emt 0:02:41]} Qxc6 {[%emt 0:01:54]} 11. Bg5 {[%emt 0:00:58]} Bd4 {[%emt 0:06:17]} 12. Qd2 {[%emt 0:00:39]} Nxg4 {[%emt 0:01:03]} 13. h3 {[%emt 0:09:10]} Nf2 {[%emt 0:01:40]} 14. Rf1 {[%emt 0:02:04]} Qc5 {[%emt 0:00:36]} 15. Bh4 {[%emt 0:03:06]} Qb4 {[%emt 0:02:00]} 16. Rb1 {[%emt 0:03:19]} Qc5 {[%emt 0:01:10]} 17. Bxf2 {[%emt 0:01:39]} Bxf2+ {[%emt 0:01:01]} 18. Qxf2 {[%emt 0:00:23]} Qxf2+ {[%emt 0:00:13]} 19. Rxf2 {[%emt 0:00:08]} Rd8 {[%emt 0:03:41]} 20. b4 {[%emt 0:01:00]} Ke7 {[%emt 0:00:38]} 21. b5 {[%emt 0:00:52]} a5 {[%emt 0:01:05]} 22. b6 {[%emt 0:00:17]} cxb6 {[%emt 0:00:54]} 23. Rxb6 {[%emt 0:00:10]} Rd7 {[%emt 0:01:10]} 24. Ra6 {[%emt 0:00:22]} Ke6 {[%emt 0:02:24]} 25. Rxa5 {[%emt 0:00:21]} d5 {[%emt 0:00:32]} 26. exd5+ {[%emt 0:00:18]} Ke5 {[%emt 0:00:28]} 27. Rb5 {[%emt 0:01:20]} f5 {[%emt 0:00:57]} 28. Kd2 {[%emt 0:00:31]} g5 {[%emt 0:04:17]} 29. Rf1 {[%emt 0:00:55]} Rf8 {[%emt 0:13:39]} 1-0

[Event "CZE-ch Youth G10-G12-G14 2022"]
[Site "Luhacovice"]
[Date "2022.03.14"]
[Round "3.12"]
[White "Buchtova, Viktorie"]
[Black "Stara, Zuzana"]
[Result "1-0"]
[ECO "B88"]
[WhiteElo "1464"]
[BlackElo "1322"]
[Annotator "NA"]
[PlyCount "95"]
[EventDate "2022.03.12"]
[EventType "swiss"]
[EventCountry "CZE"]
[SourceTitle "playchess.com"]
[Source "ChessBase"]
[SourceQuality "1"]
[TimeControl "40/5400+30:1800+30"]

1. e4 {[%emt 0:00:04]} c5 {[%emt 0:00:05]} 2. Nf3 {[%emt 0:00:06]} Nf6 {[%emt 0:00:16]} 3. Nc3 {[%emt 0:00:26]} d6 {[%emt 0:00:14]} 4. d4 {[%emt 0:00:08]} cxd4 {[%emt 0:00:05]} 5. Nxd4 {[%emt 0:00:05]} a6 {[%emt 0:00:17]} 6. Bc4 {[%emt 0:00:44]} e6 {[%emt 0:01:56]} 7. Bb3 {[%emt 0:00:35]} Nc6 {[%emt 0:01:14]} 8. O-O {[%emt 0:00:46]} Be7 {[%emt 0:00:40]} 9. Kh1 {[%emt 0:03:18]} O-O {[%emt 0:06:36]} 10. f4 {[%emt 0:01:14]} Bd7 {[%emt 0:04:54]} 11. f5 {[%emt 0:06:42]} e5 {[%emt 0:07:53]} 12. Nf3 {[%emt 0:00:17]} Rc8 {[%emt 0:01:28]} 13. Bg5 {[%emt 0:02:27]} Na7 {[%emt 0:04:05]} 14. Bxf6 {[%emt 0:00:43]} Bxf6 {[%emt 0:06:07]} 15. Qxd6 {[%emt 0:01:00]} Nb5 {[%emt 0:05:32]} 16. Nxb5 {[%emt 0:01:21]} Bxb5 {[%emt 0:00:00]} 17. Rfd1 {[%emt 0:05:16]} Be2 {[%emt 0:08:33]} 18. Rd2 {[%emt 0:04:28]} Bxf3 {[%emt 0:00:35]} 19. gxf3 {[%emt 0:00:05]} Qxd6 {[%emt 0:06:17]} 20. Rxd6 {[%emt 0:00:07]} Rfd8 {[%emt 0:02:38]} 21. Rad1 {[%emt 0:00:35]} Kf8 {[%emt 0:02:50]} 22. Kg2 {[%emt 0:04:11]} Ke7 {[%emt 0:04:33]} 23. Rxd8 {[%emt 0:00:30]} Rxd8 {[%emt 0:00:26]} 24. Rxd8 {[%emt 0:00:08]} Kxd8 {[%emt 0:00:04]} 25. Bxf7 {[%emt 0:00:05]} b6 {[%emt 0:00:57]} 26. Kf2 {[%emt 0:00:32]} Kc7 {[%emt 0:00:31]} 27. Bd5 {[%emt 0:00:16]} Kd6 {[%emt 0:01:20]} 28. b4 {[%emt 0:00:11]} a5 {[%emt 0:00:41]} 29. c3 {[%emt 0:00:48]} Kc7 {[%emt 0:04:00]} 30. Ke2 {[%emt 0:01:35]} axb4 {[%emt 0:04:00]} 31. cxb4 {[%emt 0:00:14]} Be7 {[%emt 0:05:39]} 32. a3 {[%emt 0:00:09]} b5 {[%emt 0:09:00]} 33. Kd3 {[%emt 0:00:21]} Kb6 {[%emt 0:01:22]} 34. Kc3 {[%emt 0:00:08]} Bd6 {[%emt 0:04:37]} 35. Kb3 {[%emt 0:01:51]} Ka6 {[%emt 0:02:10]} 36. a4 {[%emt 0:02:46]} Kb6 {[%emt 0:01:09]} 37. Bf7 {[%emt 0:01:05]} Be7 {[%emt 0:01:07]} 38. Be8 {[%emt 0:01:03]} bxa4+ {[%emt 0:00:44]} 39. Bxa4 {[%emt 0:04:21]} Bg5 {[%emt 0:02:14]} 40. Kc4 {[%emt 0:02:01]} h5 {[%emt 0:01:02]} 41. Kd5 {[%emt 0:39:44]} Bf4 {[%emt 0:30:57]} 42. h3 {[%emt 0:00:02]} h4 {[%emt 0:00:20]} 43. Be8 {[%emt 0:00:31]} Bg3 {[%emt 0:00:52]} 44. Ke6 {[%emt 0:00:31]} Bf4 {[%emt 0:00:14]} 45. Kf7 {[%emt 0:00:38]} Bh6 {[%emt 0:00:25]} 46. Kg6 {[%emt 0:00:09]} Kb7 {[%emt 0:00:48]} 47. f6 {[%emt 0:00:10]} gxf6 {[%emt 0:01:28]} 48. Kxh6 {[%emt 0:00:07]} 1-0

[Event "CZE-ch Youth G10-G12-G14 2022"]
[Site "Luhacovice"]
[Date "2022.03.14"]
[Round "3.13"]
[White "Slivova, Linda"]
[Black "Markina, Sofiia"]
[Result "1-0"]
[ECO "A02"]
[WhiteElo "1298"]
[BlackElo "1367"]
[Annotator "NA"]
[PlyCount "75"]
[EventDate "2022.03.12"]
[EventType "swiss"]
[EventCountry "CZE"]
[SourceTitle "playchess.com"]
[Source "ChessBase"]
[SourceQuality "1"]
[TimeControl "40/5400+30:1800+30"]

1. b3 {[%emt 0:21:43]} Nf6 {[%emt 0:12:24]} 2. Bb2 {[%emt 0:00:30]} c5 {[%emt 0:00:30]} 3. e3 {[%emt 0:00:30]} Nc6 {[%emt 0:00:30]} 4. f4 {[%emt 0:00:30]} d6 {[%emt 0:00:30]} 5. Bb5 {[%emt 0:00:30]} Bd7 {[%emt 0:00:30]} 6. Nf3 {[%emt 0:00:30]} g6 {[%emt 0:00:30]} 7. O-O {[%emt 0:00:30]} Bg7 {[%emt 0:00:30]} 8. Bxc6 {[%emt 0:00:30]} Bxc6 {[%emt 0:00:30]} 9. d3 {[%emt 0:00:30]} O-O {[%emt 0:00:30]} 10. e4 {[%emt 0:00:30]} Qc7 {[%emt 0:00:30]} 11. Nbd2 {[%emt 0:00:30]} b5 {[%emt 0:00:55]} 12. e5 {[%emt 0:08:29]} dxe5 {[%emt 0:07:47]} 13. Nxe5 {[%emt 0:11:07]} Bb7 {[%emt 0:07:36]} 14. Qe2 {[%emt 0:06:35]} Nd7 {[%emt 0:05:36]} 15. Rae1 {[%emt 0:10:04]} Nxe5 {[%emt 0:17:33]} 16. Bxe5 {[%emt 0:01:41]} Bxe5 {[%emt 0:00:08]} 17. Qxe5 {[%emt 0:00:20]} Qxe5 {[%emt 0:00:09]} 18. Rxe5 {[%emt 0:00:16]} Rfe8 {[%emt 0:04:12]} 19. Rxc5 {[%emt 0:00:33]} a6 {[%emt 0:00:19]} 20. Re1 {[%emt 0:01:56]} e6 {[%emt 0:01:05]} 21. Ne4 {[%emt 0:04:08]} Bxe4 {[%emt 0:00:19]} 22. Rxe4 {[%emt 0:00:20]} Rac8 {[%emt 0:00:10]} 23. Rxc8 {[%emt 0:02:01]} Rxc8 {[%emt 0:00:06]} 24. c4 {[%emt 0:00:34]} bxc4 {[%emt 0:00:42]} 25. dxc4 {[%emt 0:00:23]} Kg7 {[%emt 0:01:24]} 26. Rd4 {[%emt 0:00:26]} Kf6 {[%emt 0:01:38]} 27. Kf2 {[%emt 0:03:04]} e5 {[%emt 0:01:59]} 28. Rd6+ {[%emt 0:01:34]} Kf5 {[%emt 0:00:05]} 29. fxe5 {[%emt 0:00:34]} a5 {[%emt 0:00:25]} 30. Rf6+ {[%emt 0:03:08]} Kxe5 {[%emt 0:00:10]} 31. Rxf7 {[%emt 0:00:09]} h5 {[%emt 0:00:17]} 32. Rd7 {[%emt 0:00:35]} Rf8+ {[%emt 0:00:29]} 33. Ke3 {[%emt 0:00:47]} Ra8 {[%emt 0:01:46]} 34. Rd5+ {[%emt 0:01:00]} Kf6 {[%emt 0:01:16]} 35. Kf4 {[%emt 0:02:53]} a4 {[%emt 0:06:58]} 36. b4 {[%emt 0:00:46]} Rb8 {[%emt 0:00:24]} 37. b5 {[%emt 0:00:22]} Re8 {[%emt 0:01:08]} 38. b6 {[%emt 0:00:49]} 1-0

[Event "CZE-ch Youth G10-G12-G14 2022"]
[Site "Luhacovice"]
[Date "2022.03.14"]
[Round "3.14"]
[White "Kozusnikova, Daniela"]
[Black "Stavova, Lucie"]
[Result "1-0"]
[ECO "D01"]
[WhiteElo "1364"]
[BlackElo "1048"]
[Annotator "NA"]
[PlyCount "20"]
[EventDate "2022.03.12"]
[EventType "swiss"]
[EventCountry "CZE"]
[SourceTitle "playchess.com"]
[Source "ChessBase"]
[SourceQuality "1"]
[TimeControl "40/5400+30:1800+30"]

1. d4 {[%emt 0:00:07]} d5 {[%emt 0:00:09]} 2. Nc3 {[%emt 0:00:07]} Nf6 {[%emt 0:01:01]} 3. Bg5 {[%emt 0:00:29]} e6 {[%emt 0:00:18]} 4. Nf3 {[%emt 0:00:38]} Be7 {[%emt 0:00:39]} 5. e3 {[%emt 0:00:39]} Nbd7 {[%emt 0:02:21]} 6. Bd3 {[%emt 0:01:36]} Nf8 {[%emt 0:02:24]} 7. Bf4 {[%emt 0:16:37]} Ng6 {[%emt 0:06:45]} 8. Bg3 {[%emt 0:02:57]} Bd7 {[%emt 0:04:16]} 9. Ne5 {[%emt 0:04:05]} c6 {[%emt 0:06:26]} 10. h3 {[%emt 0:06:49]} Bd6 {[%emt 0:03:35]} 1-0